bitfinex/quotes_ETHUSD_20251117
["timestamp","ask_amount","ask_price","bid_price","bid_amount"]
[1763367661780,0.002,3204.3,3203.8,1.1337408]
[1763367662282,0.4741,3204.3,3203.8,1.1337408]
[1763367662682,0.002,3204.3,3203.8,1.1337408]
[1763367662986,0.002,3204.3,3204.1,4.85561648]
[1763367663386,0.002,3204.3,3204.2,1.5392448]
[1763367663726,0.002,3204.3,3204.2,4.66014861]
[1763367666526,0.002,3204.5,3204.2,7.83105242]
[1763367671833,0.002,3204.5,3204.4,0.405504]
[1763367671996,0.002,3204.5,3204.4,1.22915964]
[1763367673294,0.002,3204.5,3204.4,5.48360946]
[1763367675554,0.002,3204.6,3204.5,1.1337408]
[1763367675848,0.002,3204.6,3204.5,1.5392448]
[1763367678153,0.002,3204.6,3204.5,4.65985643]
[1763367678381,0.002,3204.6,3204.5,5.52527854]
[1763367678733,0.002,3204.6,3204.5,10.21346365]
[1763367679380,0.002,3204.7,3204.6,0.405504]
[1763367680382,0.002,3204.7,3204.6,4.65975906]
[1763367681340,0.002,3205.3,3205.2,0.455504]
[1763367681573,0.189,3206.3,3205.3,1.5392448]
[1763367681773,0.189,3206.3,3205.8,6.22742991]
[1763367682341,0.189,3206.3,3205.9,1.5392448]
[1763367682545,0.1995,3206.5,3206.3,1.5392448]
[1763367683075,0.9289,3206.4,3206.3,1.5392448]
[1763367683300,0.4531,3206.4,3206.3,6.22742991]
[1763367683452,0.1995,3207.8,3206.4,1.5392448]
[1763367683635,0.6753,3207.8,3207.7,1.1337408]
[1763367683834,0.6753,3207.8,3206.4,0.62274299]
[1763367684077,0.4531,3207.1,3207.0,1.5392448]
[1763367684244,0.4758,3207.7,3207.2,0.405504]
[1763367684457,0.4758,3207.7,3207.6,4.68818511]
[1763367684654,0.005,3207.9,3207.7,1.5392448]
[1763367684841,0.4758,3208.4,3208.1,0.405504]
[1763367685174,0.4758,3208.8,3208.5,0.405504]
[1763367685359,0.4531,3208.6,3208.5,0.405504]
[1763367685564,0.4758,3208.8,3208.5,0.405504]
[1763367685744,0.4531,3208.6,3208.5,1.02824699]
[1763367686075,0.4531,3208.6,3207.5,1.94908695]
[1763367686076,0.4531,3208.6,3207.9,4.68818511]
[1763367686274,0.005,3208.9,3208.4,1.1337408]
[1763367686474,0.4758,3208.6,3208.4,1.1337408]
[1763367686786,0.4531,3208.5,3207.9,4.68818511]
[1763367687110,0.4531,3208.4,3208.0,1.5392448]
[1763367687266,0.4758,3208.6,3208.0,1.5392448]
[1763367687584,0.4758,3208.6,3208.4,0.405504]
[1763367688075,0.4531,3208.5,3208.4,0.405504]
[1763367688258,0.9289,3208.5,3208.4,0.405504]
[1763367689136,0.9289,3208.5,3207.3,0.05]
[1763367689341,0.9289,3208.4,3207.8,1.5392448]
[1763367689780,0.6526,3207.9,3207.8,1.5392448]
[1763367689979,0.6526,3207.9,3207.8,1.1337408]
[1763367690151,1.1284,3207.9,3207.8,1.5392448]
[1763367690484,1.1284,3207.9,3207.3,4.68818511]
[1763367690684,1.1284,3207.9,3207.0,0.05]
[1763367690685,0.4758,3207.8,3207.1,1.1337408]
[1763367690886,0.4758,3207.8,3207.5,1.1337408]
[1763367691254,0.4531,3207.6,3207.5,1.1337408]
[1763367691580,0.1995,3207.9,3207.6,0.405504]
[1763367691775,0.1995,3207.9,3207.8,5.82192591]
[1763367692140,1.1284,3207.9,3207.8,5.82192591]
[1763367692345,1.1284,3207.9,3207.8,1.1337408]
[1763367694497,1.1284,3207.9,3206.7,4.68818511]
[1763367694641,0.4531,3207.3,3206.7,4.68818511]
[1763367694839,0.6526,3206.8,3206.7,5.47385946]
[1763367695079,1.1284,3206.8,3206.3,7.85704127]
[1763367695277,0.4758,3206.7,3206.4,1.5392448]
[1763367695575,0.4758,3206.7,3206.4,1.1337408]
[1763367695781,0.6753,3206.8,3206.4,1.1337408]
[1763367695982,0.4531,3206.5,3206.4,1.1337408]
[1763367696144,0.4531,3206.5,3206.3,4.68818511]
[1763367696345,0.4531,3206.4,3206.3,5.09368911]
[1763367696670,0.4531,3206.4,3206.3,6.22742991]
[1763367697593,0.9289,3206.4,3206.3,5.09368911]
[1763367697889,0.9289,3206.4,3206.3,6.22742991]
[1763367698401,0.6753,3206.8,3206.4,0.405504]
[1763367698598,0.4758,3207.2,3206.8,0.405504]
[1763367698893,0.4758,3207.2,3207.1,5.82192591]
[1763367699044,0.9289,3207.2,3207.1,5.82192591]
[1763367699442,0.9289,3207.2,3207.1,1.1337408]
[1763367705410,0.4758,3207.8,3207.2,1.1337408]
[1763367705751,0.4758,3207.8,3207.3,0.405504]
[1763367705954,0.4758,3207.8,3207.5,4.68818511]
[1763367706155,0.4758,3207.8,3207.7,0.405504]
[1763367706594,0.9289,3207.8,3207.7,0.405504]
[1763367708076,0.9289,3207.8,3207.6,1.1337408]
[1763367708259,0.9289,3207.7,3207.6,1.1337408]
[1763367709503,0.2015,3207.9,3207.7,0.405504]
[1763367710088,0.4531,3207.8,3207.7,0.405504]
[1763367711109,0.9289,3207.8,3207.7,0.405504]
[1763367711714,0.9289,3207.8,3207.2,0.405504]
[1763367711914,0.474,3207.3,3207.2,1.5392448]
[1763367712252,0.474,3207.3,3207.2,2.16198779]
[1763367712414,0.9517,3207.3,3207.2,1.1337408]
[1763367712710,0.9517,3207.3,3207.2,1.5392448]
[1763367713217,0.2015,3207.9,3207.2,1.5392448]
[1763367713417,0.4777,3207.7,3207.2,1.1337408]
[1763367713615,0.474,3207.3,3207.2,1.5392448]
[1763367714388,0.9517,3207.3,3206.8,1.1337408]
[1763367714709,0.474,3207.2,3206.9,0.405504]
[1763367714905,0.9517,3207.2,3206.9,0.405504]
[1763367715220,0.2015,3207.9,3207.2,1.1337408]
[1763367715527,0.4777,3207.8,3207.3,0.405504]
[1763367716020,0.474,3207.4,3207.3,0.405504]
[1763367716690,0.4777,3207.8,3207.3,0.405504]
[1763367717523,0.474,3207.4,3207.3,0.405504]
[1763367717903,0.9517,3207.4,3207.1,1.1337408]
[1763367718224,0.474,3207.2,3206.9,1.5392448]
[1763367718526,0.474,3207.2,3206.9,2.47381903]
[1763367718731,0.2015,3207.9,3206.9,2.47381903]
[1763367718933,0.4777,3207.6,3206.9,2.47381903]
[1763367719309,0.2015,3207.9,3207.4,0.405504]
[1763367719504,0.2015,3207.9,3207.7,1.5392448]
[1763367719711,0.002,3207.9,3207.7,2.16198779]
[1763367721213,0.002,3207.9,3207.8,3.52290533]
[1763367721605,0.002,3207.9,3207.8,4.65664613]
[1763367724642,0.002,3208.3,3207.9,1.5392448]
[1763367724816,0.002,3208.3,3208.2,6.22742991]
[1763367725021,0.002,3208.3,3208.2,6.8501729]
[1763367725630,0.9537,3208.3,3208.2,6.8501729]
[1763367725840,0.9537,3208.3,3208.2,1.5392448]
[1763367726808,0.9537,3208.3,3208.2,1.1337408]
[1763367727407,0.002,3208.3,3208.2,1.1337408]
[1763367727743,0.9537,3208.3,3208.2,1.1337408]
[1763367729417,0.9537,3208.3,3207.6,4.68818511]
[1763367729616,0.672,3207.7,3207.2,4.68818511]
[1763367729819,0.198,3207.7,3207.1,0.001]
[1763367730145,0.474,3207.2,3207.1,0.001]
[1763367730509,0.9517,3207.2,3207.1,0.001]
[1763367731350,0.474,3207.2,3207.1,0.001]
[1763367732150,0.9517,3207.2,3207.1,0.001]
[1763367732518,0.474,3207.2,3207.1,0.001]
[1763367732947,0.9517,3207.2,3207.1,0.001]
[1763367734940,0.4777,3207.5,3207.1,0.001]
[1763367735141,0.474,3207.2,3207.1,0.001]
[1763367735542,0.9517,3207.2,3207.1,0.001]
[1763367735932,0.9517,3207.2,3206.8,0.001]
[1763367736146,0.672,3206.9,3206.8,0.001]
[1763367736723,0.4777,3207.4,3207.0,0.002]
[1763367737022,0.4777,3207.4,3207.1,4.68818511]
[1763367737224,0.198,3207.7,3207.2,1.1337408]
[1763367737558,0.6551,3207.7,3207.2,1.71613339]
[1763367737755,0.4569,3207.3,3207.2,1.1337408]
[1763367738142,0.4571,3207.6,3207.3,0.405504]
[1763367738551,0.4571,3207.6,3207.0,0.002]
[1763367738552,0.4569,3207.4,3207.0,0.002]
[1763367738753,0.4569,3207.1,3207.0,0.002]
[1763367739267,0.914,3207.1,3207.0,0.002]
[1763367739646,0.4571,3207.4,3207.0,0.002]
[1763367739847,0.198,3207.7,3207.0,0.002]
[1763367740060,0.198,3207.7,3207.2,1.5392448]
[1763367740061,0.6551,3207.7,3207.2,1.5392448]
[1763367740559,0.4569,3207.3,3207.0,0.35468074]
[1763367740761,0.4569,3207.1,3207.0,0.002]
[1763367740967,0.4571,3207.6,3207.0,0.002]
[1763367741127,0.4569,3207.1,3207.0,0.002]
[1763367741530,0.4525,3207.5,3207.0,0.002]
[1763367741764,0.4525,3207.5,3207.0,1.5412448]
[1763367742226,0.4525,3207.5,3207.0,2.0072969]
[1763367742625,0.4894,3207.1,3207.0,2.0072969]
[1763367742862,0.4894,3207.1,3207.0,0.002]
[1763367743063,0.9419,3207.1,3207.0,0.002]
[1763367745578,0.4894,3207.1,3207.0,0.002]
[1763367745753,0.4525,3207.6,3207.0,0.002]
[1763367745953,0.4894,3207.1,3207.0,0.002]
[1763367746463,0.9419,3207.1,3207.0,0.002]
[1763367747566,0.4525,3207.4,3207.0,0.002]
[1763367747870,0.6505,3207.7,3207.0,3.99166572]
[1763367748069,0.198,3207.7,3207.2,1.5392448]
[1763367748267,0.4525,3207.9,3207.2,1.5392448]
[1763367748435,0.6447,3207.9,3207.2,1.5392448]
[1763367748763,0.6447,3207.9,3207.4,0.405504]
[1763367748929,0.6447,3207.9,3207.1,1.1337408]
[1763367748930,0.4525,3207.8,3207.2,0.405504]
[1763367749442,0.1922,3207.9,3207.5,0.405504]
[1763367749646,0.6447,3207.9,3207.5,0.405504]
[1763367749840,0.6447,3207.9,3207.7,0.405504]
[1763367750242,0.002,3208.3,3207.9,1.5392448]
[1763367752182,0.002,3208.3,3208.2,0.405504]
[1763367752330,0.4545,3208.3,3208.1,0.405504]
[1763367752534,0.4894,3208.2,3207.8,0.405504]
[1763367752765,0.002,3208.3,3208.0,0.405504]
[1763367752969,0.002,3208.3,3208.0,0.87116729]
[1763367753270,0.4894,3208.1,3207.4,4.25153091]
[1763367753435,0.4894,3208.0,3207.4,4.25153091]
[1763367753638,0.4894,3208.0,3207.5,0.405504]
[1763367753973,0.002,3208.3,3208.1,0.405504]
[1763367754182,0.002,3208.3,3208.1,1.5392448]
[1763367754773,0.002,3208.3,3208.2,0.46564518]
[1763367755484,0.4914,3208.3,3208.2,0.46564518]
[1763367756072,0.8439,3208.3,3207.4,1.1337408]
[1763367756274,0.4894,3208.2,3207.4,3.11779011]
[1763367756492,0.9419,3208.2,3207.5,1.1337408]
[1763367756781,0.9419,3208.2,3207.6,0.405504]
[1763367757302,0.4525,3208.1,3207.6,0.405504]
[1763367757642,0.001,3208.4,3207.6,0.405504]
[1763367758051,0.4535,3208.4,3207.8,1.5392448]
[1763367758275,0.4535,3208.4,3207.8,0.91172873]
[1763367758478,0.6816,3207.9,3207.7,0.405504]
[1763367758687,0.6816,3207.9,3207.2,3.11798453]
[1763367758886,1.1341,3207.9,3207.3,0.405504]
[1763367759045,1.1341,3207.9,3207.3,1.1337408]
[1763367759360,1.1341,3207.9,3207.4,0.405504]
[1763367760756,0.4525,3208.3,3207.7,0.405504]
[1763367760946,0.4525,3208.3,3207.7,1.6675023]
[1763367762694,0.001,3208.4,3207.9,1.5392448]
[1763367763067,0.4535,3208.4,3207.9,1.5392448]
[1763367764854,0.4535,3208.4,3208.0,1.1337408]
[1763367766558,0.4535,3208.4,3207.8,1.1337408]
[1763367766559,0.4894,3208.1,3207.8,1.1337408]
[1763367766758,0.4535,3208.4,3207.9,0.55131779]
[1763367767088,0.4525,3208.3,3207.9,1.68505859]
[1763367767386,0.4535,3208.4,3208.0,1.1337408]
[1763367767593,0.4525,3208.3,3208.0,1.1337408]
[1763367767884,0.4894,3208.1,3208.0,1.1337408]
[1763367768073,0.9419,3208.1,3207.9,0.55131779]
[1763367768275,0.4894,3208.0,3207.9,3.11730415]
[1763367768490,0.4894,3208.0,3207.8,1.1337408]
[1763367768713,0.1922,3207.9,3207.8,1.1337408]
[1763367768912,0.6816,3207.9,3207.8,0.405504]
[1763367769210,1.1341,3207.9,3207.8,0.405504]
[1763367769411,1.1341,3207.9,3207.8,0.87117823]
[1763367770715,1.1341,3207.9,3207.8,3.98857956]
[1763367770919,0.001,3208.4,3208.1,0.405504]
[1763367771382,0.4509,3208.2,3208.1,0.405504]
[1763367771880,0.001,3208.4,3208.1,0.405504]
[1763367772193,0.001,3208.4,3208.2,0.63845972]
[1763367772994,0.001,3208.4,3208.3,4.2506563]
[1763367773313,0.4933,3208.4,3208.3,1.1337408]
[1763367773618,0.9442,3208.4,3208.3,1.1337408]
[1763367780635,0.001,3208.4,3208.3,1.1337408]
[1763367781127,0.001,3208.4,3208.3,1.5588091]
[1763367781628,0.001,3208.4,3208.3,4.6757246]
[1763367782027,0.001,3208.4,3208.3,1.5588091]
[1763367782404,0.4519,3208.4,3208.3,1.1337408]
[1763367782804,0.9442,3208.4,3208.3,1.1337408]
[1763367784048,0.9442,3208.4,3207.5,0.002]
[1763367784247,0.6452,3207.6,3207.2,0.002]
[1763367784550,0.1943,3207.6,3207.2,0.002]
[1763367784744,0.6866,3207.6,3207.2,0.002]
[1763367784925,0.4509,3207.3,3207.2,0.002]
[1763367785310,0.6866,3207.6,3207.2,0.002]
[1763367785514,0.1943,3207.8,3207.3,1.1337408]
[1763367785718,0.1943,3207.8,3207.5,0.405504]
[1763367786044,0.001,3208.4,3207.5,0.405504]
[1763367786045,0.1943,3208.0,3207.5,0.405504]
[1763367786251,0.1943,3208.0,3207.7,1.1337408]
[1763367786627,0.4923,3208.3,3207.7,1.1337408]
[1763367786823,0.6452,3207.8,3207.5,0.405504]
[1763367787029,0.4509,3207.7,3207.5,0.61923941]
[1763367787211,0.4509,3207.6,3207.5,0.61923941]
[1763367787412,0.1943,3207.8,3207.5,4.87067311]
[1763367788449,0.1943,3208.0,3207.5,1.75298021]
[1763367788659,0.4923,3207.8,3207.5,4.87064197]
[1763367790753,0.001,3208.4,3208.1,1.5392448]
[1763367792369,0.001,3208.2,3208.1,4.65635461]
[1763367795055,0.4519,3208.2,3208.1,4.65635461]
[1763367795259,0.4519,3208.2,3208.1,5.43371859]
[1763367795459,0.001,3208.2,3208.1,5.43371859]
[1763367795849,0.9442,3208.2,3207.6,0.79884237]
[1763367796177,0.4933,3208.2,3207.7,1.1337408]
[1763367796560,0.4933,3208.2,3207.7,3.11749409]
[1763367796879,0.4933,3208.2,3207.5,0.002]
[1763367797082,0.4509,3207.8,3207.6,1.5392448]
[1763367797381,0.4933,3208.2,3207.6,1.5392448]
[1763367797579,0.4933,3208.2,3207.7,0.55560046]
[1763367797985,0.6704,3207.8,3207.7,0.405504]
[1763367798486,0.6435,3208.0,3207.7,3.52291501]
[1763367798899,0.4801,3207.8,3207.7,0.405504]
[1763367799272,0.9333,3207.8,3207.7,0.405504]
[1763367800199,0.001,3208.2,3207.7,3.52299313]
[1763367800397,0.4542,3208.2,3207.7,3.9862808]
[1763367800602,0.6704,3207.8,3207.7,0.405504]
[1763367800983,1.1236,3207.8,3207.7,0.405504]
[1763367801368,1.1236,3207.8,3207.6,5.81411921]
[1763367801699,0.4645,3207.7,3207.6,8.93171492]
[1763367802100,0.001,3208.2,3207.7,0.405504]
[1763367802297,0.001,3208.2,3207.7,1.33942589]
[1763367802499,0.489,3208.2,3207.9,1.1337408]
[1763367802699,0.489,3208.2,3207.7,4.45689495]
[1763367802887,0.489,3208.2,3207.8,1.1337408]
[1763367803296,0.4645,3207.9,3207.8,1.1337408]
[1763367803506,0.001,3208.2,3207.8,2.16084222]
[1763367804571,0.001,3208.2,3208.0,1.1337408]
[1763367804770,0.001,3208.2,3208.1,4.82578364]
[1763367805303,0.4655,3208.2,3208.1,4.82578364]
[1763367805882,0.9535,3208.2,3208.1,1.1337408]
[1763367808908,0.9535,3208.2,3207.7,1.1337408]
[1763367809107,0.488,3208.1,3207.7,1.1337408]
[1763367809284,0.6604,3207.8,3207.7,1.1337408]
[1763367809488,0.488,3208.1,3207.7,1.1337408]
[1763367809682,0.488,3208.1,3208.0,3.69204284]
[1763367810078,0.9525,3208.1,3208.0,3.69204284]
[1763367810618,0.4645,3208.1,3208.0,7.38408568]
[1763367810910,0.4645,3208.1,3208.0,8.51782648]
[1763367811113,0.4645,3208.1,3208.0,4.82578364]
[1763367811412,0.9525,3208.1,3208.0,3.69204284]
[1763367811599,0.9525,3208.1,3207.5,0.49]
[1763367811600,0.9525,3208.1,3207.9,1.1337408]
[1763367811801,0.488,3208.0,3207.9,1.1337408]
[1763367812113,0.9525,3208.0,3207.9,1.1337408]
[1763367812811,0.4645,3208.0,3207.9,1.1337408]
[1763367814007,0.9525,3208.0,3207.9,1.1337408]
[1763367815200,0.4645,3208.0,3207.9,1.1337408]
[1763367815397,0.001,3208.2,3207.9,1.1337408]
[1763367815626,0.4645,3208.0,3207.7,1.5392448]
[1763367815823,0.6604,3207.8,3207.7,1.5392448]
[1763367816027,0.6839,3208.1,3207.7,1.5392448]
[1763367816226,0.1959,3208.1,3207.7,1.5392448]
[1763367816431,0.1959,3208.1,3207.7,2.31689415]
[1763367816602,0.488,3208.0,3207.7,2.31689415]
[1763367816803,0.488,3208.0,3207.9,4.82578364]
[1763367817226,0.4645,3208.0,3207.9,4.82578364]
[1763367817455,0.001,3208.2,3208.0,1.1337408]
[1763367817631,0.9525,3208.1,3208.0,1.1337408]
[1763367817827,0.001,3208.2,3208.0,5.21259249]
[1763367820842,0.001,3208.2,3208.0,8.32979527]
[1763367821038,0.001,3208.2,3208.1,0.405504]
[1763367823348,0.001,3208.2,3208.1,4.65635461]
[1763367823650,0.001,3208.2,3208.1,4.78124864]
[1763367823954,0.001,3208.2,3208.1,6.34818324]
[1763367825619,0.001,3208.2,3208.1,6.22328921]
[1763367827820,0.001,3208.2,3208.1,9.91533205]
[1763367828149,0.001,3208.2,3208.1,10.04022647]
[1763367833367,0.001,3208.2,3208.1,9.91533205]
[1763367834973,0.9707,3208.2,3208.1,9.91533205]
[1763367835172,0.4915,3208.2,3208.1,9.91533205]
[1763367836079,0.001,3208.2,3208.1,9.91533205]
[1763367836243,0.4915,3208.2,3208.1,9.91533205]
[1763367836948,0.001,3208.2,3208.1,9.91533205]
[1763367837173,0.4915,3208.2,3208.1,9.91533205]
[1763367837378,0.001,3208.2,3208.1,9.91533205]
[1763367838858,0.4915,3208.2,3208.1,9.91533205]
[1763367839676,0.001,3208.2,3208.1,9.91533205]
[1763367842189,0.9707,3208.2,3208.1,9.91533205]
[1763367842687,0.001,3208.2,3208.1,9.91533205]
[1763367842904,0.4915,3208.2,3208.1,9.91533205]
[1763367843185,0.4915,3208.2,3208.1,7.94289345]
[1763367843386,0.9707,3208.2,3208.1,7.94289345]
[1763367843911,0.9707,3208.2,3208.1,4.82578364]
[1763367844788,0.9707,3208.2,3208.1,7.94289345]
[1763367845112,0.9707,3208.2,3208.1,4.82578364]
[1763367845412,0.9707,3208.2,3208.1,7.94289345]
[1763367845616,0.001,3208.2,3208.1,9.45679745]
[1763367846320,0.4915,3208.2,3208.1,6.33968764]
[1763367846888,0.4915,3208.2,3208.1,9.45679745]
[1763367847386,0.4915,3208.2,3208.1,6.33968764]
[1763367848136,0.001,3208.2,3208.1,9.45679745]
[1763367848298,0.001,3208.2,3208.1,9.86230145]
[1763367851021,0.001,3208.4,3208.3,7.38408568]
[1763367851192,0.001,3208.4,3208.3,10.18497189]
[1763367851908,0.001,3208.4,3208.3,6.49292905]
[1763367852226,0.001,3208.4,3208.3,10.18497189]
[1763367852434,0.001,3208.4,3208.3,13.30188739]
[1763367853138,0.001,3208.6,3208.5,0.405504]
[1763367853296,0.001,3208.6,3208.5,10.71913525]
[1763367855710,0.001,3208.6,3208.5,13.83585645]
[1763367857905,0.006,3208.9,3208.8,8.51782648]
[1763367858810,0.4792,3208.9,3208.8,4.59231853]
[1763367859135,1.1666,3208.9,3208.8,1.59297265]
[1763367859336,1.1666,3208.9,3208.8,4.59231853]
[1763367859833,1.1666,3208.9,3208.2,3.11695702]
[1763367859834,0.4409,3208.4,3207.5,0.002]
[1763367860029,0.532,3207.6,3207.5,0.002]
[1763367860406,1.0235,3207.6,3207.5,0.002]
[1763367862525,1.0235,3207.6,3207.0,0.002]
[1763367862711,0.1444,3207.3,3207.0,0.002]
[1763367863103,0.6169,3207.3,3207.0,0.002]
[1763367866234,0.9566,3207.2,3207.0,0.002]
[1763367866439,0.9566,3207.2,3206.6,0.002]
[1763367866440,0.4808,3206.9,3206.6,0.002]
[1763367866634,0.3536,3206.8,3206.6,0.002]
[1763367867139,0.8261,3206.8,3206.6,0.002]
[1763367867940,0.8261,3206.8,3206.4,0.002]
[1763367868242,0.4841,3206.5,3206.4,0.002]
[1763367868741,0.9566,3206.5,3206.4,0.002]
[1763367868955,0.1671,3206.4,3205.9,0.001]
[1763367869142,0.4809,3206.2,3205.9,0.001]
[1763367869350,0.9534,3206.2,3205.9,0.001]
[1763367869559,0.1703,3206.0,3205.9,0.001]
[1763367869976,0.6428,3206.0,3205.9,0.001]
[1763367870657,0.1703,3206.0,3205.9,0.001]
[1763367870860,0.4725,3206.4,3205.9,0.001]
[1763367871848,0.6557,3206.8,3206.0,0.459]
[1763367872252,0.4725,3206.7,3205.9,0.001]
[1763367872436,0.4725,3206.7,3205.9,3.12024888]
[1763367872637,0.4725,3206.7,3206.0,0.62395082]
[1763367874027,0.4725,3207.3,3206.2,0.405504]
[1763367874356,0.4725,3207.7,3206.8,3.52380181]
[1763367874660,0.4725,3207.5,3206.8,3.52385927]
[1763367874957,0.4725,3207.5,3206.8,4.72077941]
[1763367876462,0.4725,3207.5,3206.8,1.19692014]
[1763367876650,0.4725,3207.5,3206.6,0.405504]
[1763367877050,0.4725,3207.5,3206.7,0.459]
[1763367879033,0.4725,3207.5,3206.8,3.11837345]
[1763367879357,0.1882,3207.9,3206.9,0.405504]
[1763367879668,0.4725,3207.8,3206.7,1.1337408]
[1763367879855,0.4725,3207.8,3206.4,0.405504]
[1763367880054,0.4725,3207.8,3206.6,0.405504]
[1763367880251,0.002,3207.5,3206.8,0.405504]
[1763367880782,0.002,3207.5,3207.4,0.6626]
[1763367880933,0.002,3207.5,3207.4,1.068104]
[1763367881131,0.002,3207.5,3207.4,4.64489411]
[1763367881366,0.002,3207.5,3207.4,5.5345472]
[1763367883357,0.002,3207.5,3207.4,4.8928472]
[1763367883565,0.002,3207.5,3207.4,1.29515709]
[1763367883972,0.002,3207.5,3207.4,1.77505709]
[1763367884285,0.002,3207.5,3207.4,1.29515709]
[1763367884488,0.002,3207.5,3207.4,0.405504]
[1763367884782,0.002,3207.5,3207.4,4.00319411]
[1763367885154,0.002,3207.5,3207.4,0.885404]
[1763367885679,0.002,3207.5,3207.2,1.1337408]
[1763367885680,0.4861,3207.5,3207.2,1.1337408]
[1763367885866,0.044,3207.4,3207.1,1.5392448]
[1763367886060,0.044,3207.4,3207.2,0.46574238]
[1763367886268,0.002,3207.5,3207.2,0.46574238]
[1763367887856,0.002,3207.5,3207.2,3.58369565]
[1763367888986,0.002,3207.5,3207.4,0.4799]
[1763367889788,0.4861,3207.5,3207.3,1.1337408]
[1763367890288,0.002,3207.5,3207.4,0.4799]
[1763367890875,0.002,3207.5,3207.4,0.9389]
[1763367891093,0.002,3207.5,3207.4,2.4781448]
[1763367892086,0.002,3207.5,3207.4,5.59593491]
[1763367895262,0.002,3207.5,3207.4,5.13693491]
[1763367895462,0.002,3207.5,3207.4,6.06022959]
[1763367897663,0.002,3207.5,3207.4,6.55342959]
[1763367897863,0.002,3207.5,3207.4,6.06022959]
[1763367899794,0.4861,3207.5,3207.4,0.92329468]
[1763367899961,0.4861,3207.5,3207.4,1.1337408]
[1763367900368,0.9473,3207.5,3207.1,1.1337408]
[1763367900578,0.002,3207.5,3207.1,1.1337408]
[1763367900895,0.002,3207.5,3207.4,0.405504]
[1763367901078,0.002,3207.5,3207.4,0.855904]
[1763367901466,0.4861,3207.5,3207.1,4.6770125]
[1763367901666,0.002,3207.5,3206.9,1.5392448]
[1763367901883,0.002,3207.5,3206.9,2.0324448]
[1763367902595,0.002,3207.5,3207.4,0.4504]
[1763367902796,0.002,3207.5,3207.4,1.349104]
[1763367902999,0.002,3207.5,3207.4,0.855904]
[1763367903704,0.002,3207.5,3207.4,3.97369411]
[1763367903908,0.002,3207.5,3207.4,4.74818346]
[1763367904112,0.002,3207.5,3207.4,5.24138346]
[1763367905006,0.002,3207.5,3207.4,6.42512426]
[1763367908220,0.007,3207.9,3207.8,0.455504]
[1763367908385,0.007,3207.9,3207.8,6.88654645]
[1763367908581,0.002,3208.2,3207.9,1.5392448]
[1763367908780,0.002,3208.2,3208.1,5.6485311]
[1763367909022,0.002,3208.2,3208.1,6.28673819]
[1763367909184,0.002,3208.2,3208.1,6.77993819]
[1763367910019,0.002,3208.2,3208.1,9.897048]
[1763367910216,0.002,3208.2,3208.1,11.19847447]
[1763367910917,0.002,3208.2,3208.1,12.57858622]
[1763367912319,0.006,3208.9,3208.4,0.405504]
[1763367912519,0.006,3208.9,3208.8,0.4504]
[1763367912714,0.006,3208.9,3208.8,1.5841408]
[1763367913017,0.006,3208.9,3208.8,3.17518869]
[1763367913217,0.006,3208.9,3208.8,2.23158869]
[1763367913218,0.4901,3208.9,3208.8,2.23158869]
[1763367913420,0.006,3208.9,3208.8,2.23158869]
[1763367913624,0.006,3208.9,3208.8,2.68198869]
[1763367914130,0.006,3208.9,3208.8,6.2916185]
[1763367914504,0.006,3208.9,3208.8,5.7984185]
[1763367915018,0.9933,3208.9,3208.8,0.405504]
[1763367915216,0.9933,3208.9,3208.2,3.1169939]
[1763367915421,0.4841,3208.3,3208.1,3.11708259]
[1763367915620,0.4841,3208.3,3208.2,1.5392448]
[1763367915932,0.4612,3208.6,3208.2,1.59937354]
[1763367916231,0.4612,3208.6,3207.9,5.03899805]
[1763367916232,0.9453,3208.3,3207.9,7.9565465]
[1763367916437,0.4812,3208.0,3207.8,3.80598664]
[1763367916739,0.4812,3208.0,3207.9,0.405504]
[1763367916935,0.4812,3208.0,3207.8,3.80599037]
[1763367917085,0.4812,3208.0,3207.9,1.1337408]
[1763367917283,0.4812,3208.0,3207.8,3.11733572]
[1763367917506,0.4812,3208.0,3207.9,0.405504]
[1763367917717,0.4812,3208.0,3207.9,1.5392448]
[1763367918296,0.4612,3208.2,3207.9,4.65654895]
[1763367918623,0.4575,3208.5,3208.0,0.77738847]
[1763367918823,0.048,3208.9,3208.2,1.1337408]
[1763367918824,0.4575,3208.8,3208.2,1.1337408]
[1763367919324,0.4575,3208.8,3208.3,0.405504]
[1763367919902,0.4614,3208.4,3208.3,0.405504]
[1763367920686,0.1929,3208.9,3208.4,1.1337408]
[1763367921022,0.1929,3208.9,3208.4,1.5392448]
[1763367921023,0.4575,3208.8,3208.4,1.5392448]
[1763367921222,0.4614,3208.5,3208.4,1.5392448]
[1763367921423,0.4614,3208.5,3208.3,1.5392448]
[1763367921599,0.4614,3208.5,3208.3,2.0048699]
[1763367921800,0.1929,3208.9,3208.4,0.4822]
[1763367922224,0.6789,3208.9,3208.4,0.4822]
[1763367922725,0.1929,3208.9,3208.3,8.66662685]
[1763367922906,0.486,3208.8,3208.3,1.5392448]
[1763367923107,0.4687,3208.4,3208.2,0.405504]
[1763367923403,0.0418,3208.3,3208.2,0.405504]
[1763367923806,0.5278,3208.3,3208.2,0.405504]
[1763367924013,0.5278,3208.3,3208.0,1.1337408]
[1763367924238,0.046,3208.1,3207.7,4.25123931]
[1763367924449,0.046,3208.1,3207.8,0.73687515]
[1763367924646,0.486,3208.0,3207.9,0.405504]
[1763367925154,0.486,3208.7,3208.1,0.405504]
[1763367925433,0.4687,3208.2,3208.0,0.405504]
[1763367925729,0.4687,3208.2,3207.7,3.11749179]